bitfinex/quotes_BTCUSD_20211001
["timestamp","ask_amount","ask_price","bid_price","bid_amount"]
[1633062055298,0.26558194,43619.0,43618.0,0.0002]
[1633062055904,0.26611181,43619.0,43618.0,0.0002]
[1633062056102,0.26558194,43619.0,43618.0,0.0002]
[1633062056300,0.22958194,43619.0,43618.0,0.0002]
[1633062056701,0.23011181,43619.0,43618.0,0.0002]
[1633062056901,0.43164534,43619.0,43618.0,0.0002]
[1633062057307,0.45578809,43619.0,43618.0,0.0002]
[1633062057507,0.45578809,43619.0,43617.0,3.902e-05]
[1633062057508,0.71479119,43619.0,43617.0,3.902e-05]
[1633062057707,0.51678725,43618.0,43617.0,3.902e-05]
[1633062057903,0.51731712,43618.0,43617.0,3.902e-05]
[1633062058105,0.51777206,43618.0,43617.0,3.902e-05]
[1633062058305,0.7639315,43618.0,43617.0,3.902e-05]
[1633062058902,0.7969315,43618.0,43617.0,3.902e-05]
[1633062059704,0.8198315,43618.0,43617.0,3.902e-05]
[1633062060304,0.7868315,43618.0,43617.0,3.902e-05]
[1633062060904,0.8218315,43618.0,43617.0,3.902e-05]
[1633062061508,0.8218315,43618.0,43613.0,0.0006]
[1633062061714,0.73550367,43616.0,43613.0,0.0006]
[1633062061907,1.1,43614.0,43613.0,0.0004]
[1633062062108,1.35327257,43614.0,43613.0,0.0004]
[1633062062309,1.51356863,43614.0,43613.0,0.0004]
[1633062062705,0.65356863,43614.0,43613.0,0.0004]
[1633062062910,0.44756863,43614.0,43613.0,0.0004]
[1633062063108,0.29703876,43614.0,43613.0,0.0004]
[1633062063309,0.2974937,43614.0,43613.0,0.0004]
[1633062064312,0.31402357,43614.0,43613.0,0.0004]
[1633062064506,0.41402357,43614.0,43613.0,0.0004]
[1633062064911,0.59351351,43614.0,43613.0,0.0004]
[1633062065313,0.45102357,43614.0,43613.0,0.0004]
[1633062066311,0.41402357,43614.0,43613.0,0.0004]
[1633062067009,0.44902357,43614.0,43613.0,0.0004]
[1633062068271,0.41402357,43614.0,43613.0,0.0004]
[1633062069015,0.44902357,43614.0,43613.0,0.0004]
[1633062070211,0.41402357,43614.0,43613.0,0.0004]
[1633062071012,0.44902357,43614.0,43613.0,0.0004]
[1633062072217,0.41402357,43614.0,43613.0,0.0004]
[1633062072816,0.40551047,43614.0,43613.0,0.0004]
[1633062073017,0.44051047,43614.0,43613.0,0.0004]
[1633062073816,1.0,43613.0,43611.0,0.0364]
[1633062074019,0.33787222,43612.0,43611.0,0.0364]
[1633062074280,0.28840209,43612.0,43611.0,0.0364]
[1633062074418,0.38840209,43612.0,43611.0,0.0364]
[1633062074616,0.38885703,43612.0,43611.0,0.0364]
[1633062075017,0.42232716,43612.0,43611.0,0.0364]
[1633062075216,0.76650116,43612.0,43611.0,0.0364]
[1633062076216,0.73303103,43612.0,43611.0,0.0364]
[1633062076416,0.73250116,43612.0,43611.0,0.0364]
[1633062077017,0.76650116,43612.0,43611.0,0.0364]
[1633062077618,0.76703103,43612.0,43611.0,0.0364]
[1633062077819,0.76650116,43612.0,43611.0,0.0364]
[1633062078020,0.76650116,43612.0,43607.0,0.0002]
[1633062078021,0.89897089,43609.0,43607.0,0.0002]
[1633062078219,0.27987139,43609.0,43607.0,0.0002]
[1633062078418,0.43040126,43609.0,43607.0,0.0002]
[1633062078819,0.42987139,43609.0,43607.0,0.0002]
[1633062079019,0.46387139,43609.0,43607.0,0.0002]
[1633062079623,0.229127,43608.0,43602.0,0.0989786]
[1633062079822,0.344181,43605.0,43601.0,0.22915911]
[1633062080282,0.00914971,43604.0,43601.0,0.22915911]
[1633062080422,0.458907,43606.0,43601.0,0.22915911]
[1633062080624,0.00045494,43608.0,43605.0,0.00125068]
[1633062080823,0.04442583,43609.0,43606.0,0.0050402]
[1633062081023,0.04442583,43609.0,43606.0,0.18239208]
[1633062081625,0.10538244,43608.0,43606.0,0.0050402]
[1633062081826,0.00455167,43607.0,43605.0,0.00125068]
[1633062082022,0.10538244,43608.0,43605.0,0.00125068]
[1633062082222,0.10538244,43608.0,43601.0,0.00163405]
[1633062082422,0.10591231,43608.0,43601.0,0.00163405]
[1633062082622,0.344137,43606.0,43601.0,0.07461987]
[1633062083023,0.035,43608.0,43601.0,0.07461987]
[1633062083824,0.035,43608.0,43604.0,0.2232]
[1633062084029,0.00152519,43615.0,43607.0,0.02038529]
[1633062084227,0.00152519,43615.0,43614.0,0.00127769]
[1633062084429,0.00152519,43615.0,43614.0,0.3912918]
[1633062085026,0.04202519,43615.0,43614.0,0.6144918]
[1633062086024,0.04202519,43615.0,43614.0,0.7144918]
[1633062086289,2.519e-05,43615.0,43614.0,0.7144918]
[1633062087032,0.02902519,43615.0,43614.0,0.7294918]
[1633062088031,2.519e-05,43615.0,43614.0,1.6794918]
[1633062088233,0.0001,43630.0,43614.0,0.76578073]
[1633062088530,0.0001,43630.0,43628.0,0.00123876]
[1633062088729,0.01077518,43629.0,43628.0,0.3351622]
[1633062089130,0.23990218,43629.0,43628.0,0.3351622]
[1633062089734,0.23990218,43629.0,43628.0,0.13372]
[1633062089931,0.23990218,43629.0,43628.0,0.08625601]
[1633062090128,0.01077518,43629.0,43628.0,0.08625601]
[1633062090527,0.01077518,43629.0,43626.0,0.09013329]
[1633062090729,0.01077518,43629.0,43625.0,2.66564466]
[1633062091129,0.05177518,43629.0,43625.0,2.66564466]
[1633062091329,0.0147215,43628.0,43625.0,2.66564466]
[1633062091731,0.0147215,43628.0,43617.0,0.0229]
[1633062091930,0.0147215,43628.0,43618.0,0.09906878]
[1633062092135,0.01525137,43628.0,43618.0,0.09906878]
[1633062092634,0.0147215,43628.0,43622.0,0.24656897]
[1633062092834,0.0147215,43628.0,43623.0,0.09858701]
[1633062092835,0.22933663,43624.0,43623.0,0.09858701]
[1633062093033,0.22933663,43624.0,43620.0,0.09529862]
[1633062093230,0.22933663,43624.0,43621.0,0.008152]
[1633062093431,0.373981,43628.0,43622.0,0.2232]
[1633062093632,0.03,43628.0,43620.0,0.09551187]
[1633062094030,0.03,43628.0,43621.0,0.23641133]
[1633062094230,0.03,43628.0,43620.0,0.09551187]
[1633062094434,0.0001,43630.0,43619.0,0.07163634]
[1633062094435,0.22930587,43629.0,43619.0,0.07163634]
[1633062094631,0.00052987,43628.0,43619.0,0.07163634]
[1633062094832,0.05052987,43628.0,43619.0,0.07163634]
[1633062095029,0.05052987,43628.0,43619.0,0.07863634]
[1633062095434,1.10128293,43620.0,43619.0,0.007]
[1633062095638,0.2309398,43620.0,43619.0,0.007]
[1633062095836,0.24348144,43620.0,43619.0,0.007]
[1633062096033,0.29348144,43620.0,43619.0,0.007]
[1633062096232,0.29348144,43620.0,43608.0,1.081]
[1633062096434,0.11649889,43612.0,43609.0,0.18525855]
[1633062096634,0.344108,43611.0,43602.0,0.07230012]
[1633062097033,0.344108,43611.0,43609.0,0.024]
[1633062097034,0.00052987,43610.0,43609.0,0.024]
[1633062097232,0.24431835,43610.0,43609.0,0.024]
[1633062097436,0.24378848,43610.0,43609.0,0.024]
[1633062098294,0.24378848,43610.0,43605.0,0.1957815]
[1633062098434,0.24378848,43610.0,43602.0,0.07230012]
[1633062098634,0.01466148,43610.0,43602.0,0.07230012]
[1633062098834,0.00052987,43609.0,43602.0,0.07230012]
[1633062099034,0.00052987,43609.0,43602.0,0.10330012]
[1633062099434,0.00052987,43609.0,43603.0,0.17721313]
[1633062099635,0.344115,43609.0,43603.0,0.17721313]
[1633062100238,0.22941802,43608.0,43603.0,0.17721313]
[1633062100637,0.22941802,43608.0,43601.0,0.27468108]
[1633062100839,0.35944993,43607.0,43601.0,0.27468108]
[1633062101039,0.35944993,43607.0,43603.0,0.03]
[1633062101302,0.02019235,43606.0,43603.0,0.03]
[1633062101439,0.01479204,43605.0,43603.0,0.03]
[1633062101638,0.25494789,43608.0,43603.0,0.23626366]
[1633062101845,0.01478349,43607.0,43603.0,0.23626366]
[1633062102038,0.2297087,43606.0,43603.0,0.03]
[1633062102237,0.344147,43605.0,43603.0,0.03]
[1633062102640,0.25441802,43608.0,43603.0,0.03]
[1633062103044,0.025,43605.0,43603.0,0.027]
[1633062103247,0.025,43605.0,43604.0,0.18876584]
[1633062104043,0.025,43605.0,43604.0,2.62110125]
[1633062104242,0.16315124,43611.0,43604.0,2.62110125]
[1633062104442,0.05125099,43614.0,43604.0,2.61292425]
[1633062104644,0.01556949,43613.0,43604.0,2.61292425]
[1633062104845,0.01469913,43612.0,43604.0,2.61292425]
[1633062105045,0.01469913,43612.0,43604.0,2.64492425]
[1633062105252,0.17800905,43612.0,43604.0,2.64492425]
[1633062105644,0.17853892,43612.0,43604.0,2.64492425]
[1633062105843,0.01456174,43611.0,43604.0,2.64492425]
[1633062106243,0.22940168,43610.0,43604.0,2.64492425]
[1633062106444,0.01455777,43609.0,43604.0,2.61292425]
[1633062107046,0.01455777,43609.0,43604.0,2.64392425]
[1633062107645,0.35867577,43609.0,43604.0,2.64392425]
[1633062107851,0.01519181,43608.0,43604.0,2.64392425]
[1633062108443,0.01519181,43608.0,43604.0,2.61292425]
[1633062109043,0.026,43608.0,43605.0,0.07274704]
[1633062109243,0.344144,43606.0,43605.0,0.07274704]
[1633062109843,0.344144,43606.0,43604.0,2.64092425]
[1633062110243,0.57356655,43606.0,43604.0,2.64092425]
[1633062110448,0.57356655,43606.0,43604.0,2.61292425]
[1633062110644,0.01454257,43605.0,43604.0,2.61292425]
[1633062110844,0.57356655,43606.0,43604.0,2.61292425]
[1633062111045,0.60156655,43606.0,43604.0,2.63992425]
[1633062112445,0.57356655,43606.0,43604.0,2.61292425]
[1633062112644,0.22942255,43606.0,43604.0,2.58792425]
[1633062113046,0.25542255,43606.0,43604.0,2.61692425]
[1633062113303,0.25542255,43606.0,43604.0,2.46133541]
[1633062113847,0.25542255,43606.0,43604.0,0.029]
[1633062114445,0.22942255,43606.0,43603.0,0.23259063]
[1633062115048,0.25642255,43606.0,43603.0,0.26159063]
[1633062116049,0.027,43606.0,43603.0,0.26159063]
[1633062116310,0.027,43606.0,43604.0,0.008176]
[1633062116448,0.22940168,43610.0,43604.0,0.008176]
[1633062116648,0.22940168,43610.0,43603.0,0.23259063]
[1633062117049,0.22940168,43610.0,43603.0,0.26459063]
[1633062117247,0.01482242,43609.0,43603.0,0.26459063]
[1633062117447,0.22940168,43610.0,43603.0,0.26459063]
[1633062118447,0.22940168,43610.0,43603.0,0.23259063]
[1633062119049,0.00052987,43609.0,43603.0,0.26459063]
[1633062119450,0.02027568,43607.0,43603.0,0.032]
[1633062119650,0.02027568,43607.0,43603.0,0.00945429]
[1633062119851,0.00052987,43606.0,43603.0,0.00445429]
[1633062120050,0.00859667,43605.0,43603.0,0.00445429]
[1633062120448,0.00859667,43605.0,43603.0,0.20450996]
[1633062120852,0.00052987,43608.0,43603.0,0.20450996]
[1633062121049,0.22944232,43606.0,43603.0,0.20450996]
[1633062121251,0.38244201,43605.0,43603.0,0.20450996]
[1633062121451,0.0167611,43604.0,43603.0,0.20450996]
[1633062121651,0.0167611,43604.0,43601.0,0.27468108]
[1633062121850,0.023,43605.0,43601.0,0.27468108]
[1633062122317,0.023,43605.0,43601.0,0.35091068]
[1633062122451,0.57359032,43606.0,43601.0,0.35091068]
[1633062123253,0.59559032,43606.0,43601.0,0.35091068]
[1633062124454,0.57359032,43606.0,43601.0,0.35091068]
[1633062124654,0.57359032,43606.0,43601.0,0.07786365]
[1633062125314,0.59559032,43606.0,43601.0,0.07786365]
[1633062126459,0.57359032,43606.0,43603.0,0.01995079]
[1633062126860,0.22944232,43606.0,43603.0,0.01995079]
[1633062127259,0.25444232,43606.0,43603.0,0.01995079]
[1633062128360,0.22944232,43606.0,43603.0,0.01995079]
[1633062128762,0.00762496,43605.0,43601.0,0.00163405]
[1633062129564,0.25444232,43606.0,43601.0,0.00163405]
[1633062129762,0.59858932,43606.0,43602.0,0.07304365]
[1633062130161,0.59858932,43606.0,43601.0,0.00163405]
[1633062130561,0.57358932,43606.0,43601.0,0.00163405]
[1633062131361,0.344156,43605.0,43601.0,0.00163405]
[1633062132163,0.22944232,43606.0,43601.0,0.00163405]
[1633062132765,0.22944232,43606.0,43601.0,0.02453405]
[1633062133364,0.22944232,43606.0,43602.0,0.008177]
[1633062134366,0.83131493,43611.0,43602.0,0.008177]
[1633062134567,0.67350871,43611.0,43601.0,0.02453405]
[1633062134766,0.00052987,43610.0,43601.0,0.02453405]
[1633062134966,0.00052987,43610.0,43609.0,2.46148196]
[1633062135167,0.01553005,43610.0,43609.0,2.46148196]
[1633062135772,0.01500018,43610.0,43609.0,2.46148196]
[1633062135965,0.67350871,43611.0,43609.0,2.46148196]
[1633062137166,0.70450871,43611.0,43609.0,2.46148196]
[1633062137434,0.70503858,43611.0,43609.0,2.46148196]
[1633062137835,0.00052987,43610.0,43601.0,0.02453405]
[1633062138036,0.01535088,43608.0,43601.0,0.02453405]
[1633062138236,0.00126527,43605.0,43601.0,0.02453405]
[1633062138439,0.00806425,43603.0,43601.0,0.00163405]
[1633062138635,0.00806425,43603.0,43601.0,0.00149506]
[1633062138834,0.35280912,43603.0,43601.0,0.00149506]
[1633062139037,0.00758096,43602.0,43601.0,0.00149506]
[1633062139236,0.00758096,43602.0,43601.0,0.08681909]
[1633062139637,0.026,43603.0,43601.0,0.09499709]
[1633062139837,0.026,43603.0,43601.0,0.08681909]
[1633062140437,0.00179514,43605.0,43601.0,0.08681909]
[1633062141039,0.00179514,43605.0,43603.0,2.18388808]
[1633062141237,0.370153,43605.0,43603.0,2.18388808]
[1633062141439,0.026,43605.0,43603.0,2.18388808]
[1633062142039,0.026,43605.0,43604.0,0.0976756]
[1633062142439,0.22943886,43607.0,43604.0,0.0976756]
[1633062142640,0.01460542,43606.0,43604.0,0.0976756]
[1633062142839,0.22943886,43607.0,43604.0,0.0976756]
[1633062143043,0.22943886,43607.0,43603.0,2.18388808]
[1633062143243,0.02952987,43606.0,43603.0,2.18388808]
[1633062143444,0.01697772,43605.0,43603.0,2.18388808]
[1633062143639,0.01750759,43605.0,43603.0,2.18388808]
[1633062143841,0.01517878,43604.0,43603.0,2.18388808]
[1633062145041,0.344153,43605.0,43603.0,2.18388808]
[1633062145241,0.026,43604.0,43603.0,2.18388808]
[1633062146642,0.344153,43605.0,43603.0,2.18388808]
[1633062147344,0.369153,43605.0,43603.0,2.18388808]
[1633062149148,0.344153,43605.0,43603.0,2.18388808]
[1633062149346,0.361153,43605.0,43603.0,2.18388808]
[1633062150547,0.344153,43605.0,43603.0,2.18388808]
[1633062151349,0.353153,43605.0,43603.0,2.18370677]
[1633062152447,0.344153,43605.0,43603.0,2.18370677]
[1633062153249,0.353153,43605.0,43603.0,2.18370677]
[1633062154251,0.009,43605.0,43603.0,2.18370677]
[1633062154450,0.57357486,43607.0,43603.0,2.18370677]
[1633062154653,0.22943886,43607.0,43603.0,2.18370677]
[1633062155253,0.23843886,43607.0,43603.0,2.18370677]
[1633062156256,0.58257786,43607.0,43603.0,2.18370677]
[1633062156655,0.57357786,43607.0,43603.0,2.18370677]
[1633062157259,0.59557786,43607.0,43603.0,2.18370677]
[1633062157457,0.344145,43606.0,43603.0,2.18370677]
[1633062157856,0.01986206,43605.0,43603.0,2.18370677]
[1633062159356,0.04186206,43605.0,43603.0,2.18370677]
[1633062159557,0.01473895,43604.0,43603.0,2.11730504]
[1633062159960,0.35891095,43604.0,43603.0,2.11730504]
[1633062161359,0.37791095,43604.0,43603.0,2.11730504]
[1633062162660,0.35891095,43604.0,43603.0,2.11730504]
[1633062163362,0.37791095,43604.0,43603.0,2.11730504]
[1633062164565,0.35891095,43604.0,43603.0,2.11730504]
[1633062165363,0.37791095,43604.0,43603.0,2.11730504]
[1633062167668,0.37791095,43604.0,43603.0,2.12548604]
[1633062167869,0.03373895,43604.0,43603.0,2.12548604]
[1633062168068,0.019,43604.0,43603.0,2.12548604]
[1633062168666,0.22943886,43607.0,43603.0,2.12548604]
[1633062168866,0.22943886,43607.0,43604.0,0.01507806]
[1633062169269,0.25443886,43607.0,43604.0,0.01507806]
[1633062170668,0.22943886,43607.0,43604.0,0.01507806]
[1633062170873,0.34412,43609.0,43605.0,0.008177]
[1633062171071,0.05,43611.0,43605.0,0.18950464]
[1633062171268,0.026,43607.0,43605.0,0.18950464]
[1633062171468,0.026,43607.0,43606.0,0.008175]
[1633062171669,0.026,43607.0,43606.0,0.026798]
[1633062172069,0.026,43607.0,43606.0,0.018623]
[1633062172673,0.394108,43611.0,43606.0,0.018623]
[1633062172870,0.394108,43611.0,43607.0,0.21234999]
[1633062173471,0.426108,43611.0,43607.0,0.21234999]
[1633062173876,0.01495936,43610.0,43607.0,0.21234999]
[1633062174070,0.01548923,43610.0,43607.0,0.21234999]
[1633062174271,0.01459951,43609.0,43607.0,0.21234999]
[1633062174470,0.42663787,43611.0,43607.0,0.21234999]
[1633062174671,0.39463787,43611.0,43607.0,0.21234999]
[1633062174874,0.394108,43611.0,43607.0,0.21234999]
[1633062175181,0.05,43611.0,43609.0,0.2232]
[1633062175377,0.05,43611.0,43610.0,1.71902451]
[1633062175378,0.083,43611.0,43610.0,1.71902451]
[1633062175575,0.083,43611.0,43610.0,1.76902451]
[1633062175774,0.083,43611.0,43610.0,1.86902451]
[1633062175972,0.083,43611.0,43610.0,0.76902451]
[1633062176372,0.083,43611.0,43610.0,0.99222451]
[1633062176773,0.05,43611.0,43610.0,1.44222451]
[1633062176978,0.06565282,43628.0,43618.0,0.23135331]
[1633062177176,0.06565282,43628.0,43619.0,0.25979635]
[1633062177177,0.343993,43626.0,43619.0,0.25979635]
[1633062177573,0.01066946,43625.0,43619.0,0.25979635]
[1633062177776,0.01066946,43625.0,43623.0,0.23231095]
[1633062177973,0.01066946,43625.0,43624.0,0.19349332]
[1633062178173,0.01066946,43625.0,43624.0,0.03417871]
[1633062179174,0.22932791,43628.0,43624.0,0.03417871]
[1633062179375,0.031,43625.0,43624.0,0.03417871]
[1633062179576,0.04144726,43625.0,43624.0,0.03417871]
[1633062180379,0.04144726,43625.0,43624.0,0.02417871]
[1633062180576,0.04144726,43625.0,43620.0,0.19771307]
[1633062180778,0.01044726,43625.0,43620.0,0.19771307]
[1633062180978,0.35445526,43625.0,43620.0,0.19771307]
[1633062181176,0.010315,43624.0,43620.0,0.19771307]
[1633062181577,0.029,43625.0,43620.0,0.19771307]
[1633062182577,0.68802391,43628.0,43620.0,0.19771307]
[1633062182776,0.344017,43624.0,43620.0,0.19771307]
[1633062183176,0.01058171,43627.0,43620.0,0.19771307]
[1633062183377,0.029,43624.0,43620.0,0.19771307]
[1633062183577,0.01078713,43623.0,43620.0,0.19771307]
[1633062183781,0.029,43624.0,43620.0,0.19771307]
[1633062184578,0.344013,43625.0,43620.0,0.19771307]
[1633062185435,0.373013,43625.0,43620.0,0.19771307]
[1633062185836,0.01068014,43624.0,43620.0,0.19771307]
[1633062186038,0.01068014,43624.0,43620.0,0.19271307]
[1633062186242,0.01068014,43624.0,43621.0,0.229315]
[1633062186438,0.029,43625.0,43621.0,0.369205]
[1633062186642,0.22932791,43628.0,43621.0,0.369205]
[1633062186837,0.22932791,43628.0,43622.0,1.4744909]
[1633062187037,0.22932791,43628.0,43623.0,0.21002435]
[1633062187439,0.24132791,43628.0,43623.0,0.21002435]
[1633062188040,0.00997682,43627.0,43623.0,0.21002435]
[1633062188444,0.24132791,43628.0,43623.0,0.21002435]
[1633062188846,0.22932791,43628.0,43623.0,0.21002435]
[1633062189441,0.24732791,43628.0,43623.0,0.23402435]
[1633062190244,0.01665849,43626.0,43623.0,0.23402435]
[1633062190845,0.01058308,43627.0,43623.0,0.23402435]
[1633062191043,0.24732791,43628.0,43623.0,0.62316469]
[1633062191451,0.019,43627.0,43623.0,0.62316469]
[1633062192045,0.01034737,43626.0,43623.0,0.82636957]
[1633062193146,0.22932791,43628.0,43623.0,0.80236957]
[1633062193546,0.019,43626.0,43623.0,0.82636957]
[1633062195555,0.019,43626.0,43623.0,0.82536957]
[1633062195762,0.00994309,43625.0,43623.0,0.82536957]
[1633062195957,0.019,43626.0,43624.0,0.16349265]
[1633062196155,0.019,43626.0,43625.0,0.0229]
[1633062196355,0.019,43626.0,43625.0,0.41553838]
[1633062196560,0.0654122,43639.0,43625.0,0.41553838]
[1633062196561,0.06542209,43641.0,43631.0,0.23348749]
[1633062196760,0.06542209,43641.0,43639.0,0.02303649]
[1633062196960,0.16039192,43644.0,43640.0,0.4253054]
[1633062197159,1.05879071,43651.0,43642.0,0.01533723]
[1633062197364,1.19150213,43653.0,43649.0,0.07963046]
[1633062197563,0.229127,43652.0,43649.0,0.1754]
[1633062197757,0.0012785,43653.0,43649.0,0.1754]
[1633062198158,0.0012785,43653.0,43650.0,0.21838188]
[1633062198359,0.06563138,43661.0,43651.0,0.01010063]
[1633062198559,0.10428934,43657.0,43651.0,0.01010063]
[1633062198961,0.10428934,43657.0,43652.0,0.008118]
[1633062199160,0.10428934,43657.0,43651.0,0.01010063]
[1633062199561,0.9,43656.0,43651.0,0.00908339]
[1633062199763,0.13128934,43657.0,43651.0,0.00908339]
[1633062199964,0.00935017,43656.0,43651.0,0.00908339]
[1633062200161,0.13128934,43657.0,43651.0,0.00908339]
[1633062200563,0.18128934,43657.0,43651.0,0.00908339]
[1633062200764,0.15428934,43657.0,43651.0,0.00908339]
[1633062201562,0.18228934,43657.0,43651.0,0.01608339]
[1633062202766,0.15428934,43657.0,43654.0,2.5645401]
[1633062203566,0.19328934,43657.0,43654.0,2.5645401]
[1633062203966,0.19328934,43657.0,43655.0,0.01787203]
[1633062204766,0.15428934,43657.0,43655.0,0.01787203]
[1633062205567,0.19228934,43657.0,43655.0,0.01787203]
[1633062206387,0.19228934,43657.0,43649.0,0.00810994]
[1633062206388,1.35879679,43654.0,43649.0,0.00810994]
[1633062206579,1.10121675,43650.0,43649.0,0.00044]
[1633062206771,0.23034375,43650.0,43649.0,0.00044]
[1633062206971,0.39605811,43650.0,43649.0,0.00044]
[1633062207171,0.61981698,43650.0,43649.0,0.00044]
[1633062207372,1.08410798,43650.0,43649.0,0.00044]
[1633062207570,0.96191835,43650.0,43649.0,0.00744]
[1633062208173,0.96191835,43650.0,43638.0,1.0469]
[1633062208174,0.1215723,43639.0,43638.0,1.0469]
[1633062208373,0.1215723,43639.0,43638.0,0.008128]
[1633062208571,0.00591567,43643.0,43638.0,0.008128]
[1633062208773,0.00591567,43643.0,43637.0,0.44897742]
[1633062208975,0.00120975,43639.0,43637.0,0.44897742]
[1633062209173,0.00120975,43639.0,43638.0,0.008137]
[1633062209375,0.00091567,43643.0,43638.0,0.008137]
[1633062209574,0.025,43639.0,43637.0,0.24979542]
[1633062209774,0.025,43639.0,43638.0,0.008135]
[1633062210976,0.11082272,43643.0,43638.0,0.008135]
[1633062211174,0.11082272,43643.0,43637.0,0.21979542]
[1633062211377,0.11082272,43643.0,43639.0,0.01733262]
[1633062211583,0.13682272,43643.0,43639.0,0.01733262]
[1633062211979,0.13682272,43643.0,43640.0,0.01995885]
[1633062212378,0.18682272,43643.0,43640.0,0.01995885]
[1633062212778,0.16082272,43643.0,43640.0,0.01995885]
[1633062212981,0.35128902,43641.0,43640.0,0.01995885]
[1633062213181,0.00128902,43641.0,43640.0,0.01995885]
[1633062213379,0.05128902,43641.0,43640.0,0.01995885]
[1633062213578,0.02828902,43641.0,43640.0,0.04795885]
[1633062213977,0.04894665,43641.0,43640.0,0.028]
[1633062214385,0.02828902,43641.0,43640.0,0.028]
[1633062214781,0.00128902,43641.0,43640.0,0.008134]
[1633062214981,0.00128902,43641.0,43638.0,2.64316294]
[1633062215581,0.02728902,43641.0,43638.0,2.67316294]
[1633062216182,0.22925588,43640.0,43638.0,2.67316294]
[1633062216386,0.05,43639.0,43638.0,2.67316294]
[1633062216785,0.05,43639.0,43638.0,2.64316294]
[1633062216982,0.05,43639.0,43638.0,2.65129794]
[1633062217583,0.076,43639.0,43638.0,2.68129794]
[1633062217785,0.10677183,43639.0,43638.0,2.68129794]
[1633062217985,0.076,43639.0,43638.0,2.68129794]
[1633062218843,0.05,43639.0,43638.0,2.65129794]
[1633062219243,0.05,43639.0,43638.0,2.66644611]
[1633062219643,0.076,43639.0,43638.0,2.69544611]
[1633062220444,0.076,43639.0,43638.0,2.68731111]
[1633062220844,0.05,43639.0,43638.0,2.65831111]
[1633062221645,0.081,43639.0,43638.0,2.67531111]
[1633062222949,0.05,43639.0,43638.0,2.65831111]
[1633062223546,0.081,43639.0,43638.0,2.67531111]
[1633062223750,0.081,43639.0,43638.0,2.68344711]
[1633062224949,0.05,43639.0,43638.0,2.66644711]
[1633062225549,0.05,43639.0,43638.0,2.68644711]
[1633062225550,0.082,43639.0,43638.0,2.68644711]
[1633062226950,0.082,43639.0,43638.0,2.66644711]
[1633062226951,0.05,43639.0,43638.0,2.66644711]
[1633062227653,0.082,43639.0,43638.0,2.68544711]
[1633062228855,0.05,43639.0,43638.0,2.66644711]
[1633062229660,0.079,43639.0,43638.0,2.68644711]
[1633062230856,0.079,43639.0,43638.0,2.66644711]
[1633062230857,0.05,43639.0,43638.0,2.66644711]
[1633062231757,0.05,43639.0,43638.0,2.68644711]
[1633062231758,0.079,43639.0,43638.0,2.68644711]
[1633062232360,0.029,43639.0,43638.0,2.68644711]
[1633062232557,0.029,43639.0,43638.0,2.67129894]
[1633062233561,0.031,43639.0,43638.0,2.67129894]
[1633062234960,0.57314888,43640.0,43638.0,2.65129894]
[1633062235160,0.57314888,43640.0,43639.0,0.008136]
[1633062235561,0.60414888,43640.0,43639.0,0.008136]
[1633062236563,0.65414888,43640.0,43639.0,0.008136]
[1633062236965,0.62314888,43640.0,43639.0,0.008136]
[1633062237564,0.65614888,43640.0,43639.0,0.02107536]
[1633062239565,0.65714888,43640.0,43638.0,2.59789053]
[1633062239765,0.05,43639.0,43638.0,2.59789053]
[1633062240567,0.08470327,43639.0,43638.0,2.59789053]
[1633062241569,0.11570327,43639.0,43638.0,2.61389053]
[1633062242969,0.08470327,43639.0,43638.0,2.59789053]
[1633062243571,0.11570327,43639.0,43638.0,2.61489053]
[1633062244170,1.21570327,43639.0,43638.0,1.25557621]
[1633062244382,1.21570327,43639.0,43630.0,0.00044]
[1633062244383,0.3004653,43637.0,43630.0,0.00044]
[1633062244574,1.19765781,43632.0,43630.0,0.00044]
[1633062244780,1.50022368,43632.0,43630.0,0.00044]
[1633062244975,1.7965999,43632.0,43630.0,0.00044]
[1633062245178,1.05301531,43632.0,43630.0,0.00044]
[1633062245373,1.16357675,43632.0,43630.0,0.00044]
[1633062245577,0.344027,43628.0,43624.0,0.7843]
[1633062245774,0.0012009,43626.0,43621.0,0.22196921]
[1633062246770,0.00173077,43626.0,43621.0,0.22196921]
[1633062246971,0.03763011,43625.0,43621.0,0.22196921]
[1633062247171,0.53405134,43624.0,43621.0,0.22196921]
[1633062248170,0.53405134,43624.0,43623.0,2.21458694]
[1633062248771,0.53405134,43624.0,43621.0,0.22196921]
[1633062249572,0.344025,43624.0,43621.0,0.22196921]
[1633062249773,0.371025,43624.0,43621.0,0.22196921]
[1633062250972,0.344025,43624.0,43621.0,0.22196921]
[1633062251773,0.371025,43624.0,43621.0,0.22196921]
[1633062252977,0.344025,43624.0,43621.0,0.22196921]
[1633062253378,0.00126827,43622.0,43617.0,0.26826805]
[1633062253579,0.344039,43619.0,43617.0,0.26826805]
[1633062253777,0.03764207,43618.0,43617.0,0.26826805]
[1633062253976,0.344039,43619.0,43617.0,0.26826805]
[1633062254376,0.344039,43619.0,43618.0,0.22237848]
[1633062255776,0.372039,43619.0,43618.0,0.22237848]
[1633062257181,0.344039,43619.0,43618.0,0.22237848]
[1633062257781,0.372039,43619.0,43618.0,0.22237848]
[1633062258982,0.344039,43619.0,43618.0,0.22237848]
[1633062259682,0.372039,43619.0,43618.0,0.22237848]
[1633062259882,0.41116391,43619.0,43618.0,0.22237848]
[1633062260681,0.41116391,43619.0,43618.0,0.21737848]
[1633062260888,0.38316391,43619.0,43618.0,0.21737848]
[1633062261681,0.41116391,43619.0,43618.0,0.21737848]
[1633062262084,0.028,43619.0,43618.0,0.21737848]
[1633062262883,0.2793629,43620.0,43618.0,0.21737848]
[1633062263485,0.2793629,43620.0,43618.0,0.23224182]
[1633062263686,0.3033629,43620.0,43618.0,0.23224182]
[1633062264885,0.2793629,43620.0,43618.0,0.23224182]
[1633062265685,0.3033629,43620.0,43618.0,0.23224182]
[1633062266684,0.6473909,43620.0,43618.0,0.23224182]
[1633062267089,0.6233909,43620.0,43618.0,0.23224182]
[1633062267684,0.6513909,43620.0,43618.0,0.23224182]
[1633062268886,0.6233909,43620.0,43618.0,0.23224182]
[1633062269689,0.6513909,43620.0,43618.0,0.23224182]
[1633062270487,0.6513909,43620.0,43618.0,0.21737848]
[1633062271087,0.6233909,43620.0,43618.0,0.21737848]
[1633062271688,0.6513909,43620.0,43618.0,0.21737848]
[1633062273090,0.6233909,43620.0,43618.0,0.21737848]
[1633062273690,0.6513909,43620.0,43618.0,0.21737848]
[1633062275493,0.2573629,43620.0,43618.0,0.21737848]
[1633062276895,0.2293629,43620.0,43618.0,0.21737848]
[1633062277096,0.2293629,43620.0,43619.0,0.01504927]